bitfinex-derivatives/quotes_SOLF0:USTF0_20240827
["timestamp","ask_amount","ask_price","bid_price","bid_amount"]
[1724784124696,0.04583545,155.31,155.28,0.04492612]
[1724784125085,0.04583545,155.31,155.29,3.2195]
[1724784125688,0.04583545,155.31,155.28,0.04492612]
[1724784126091,0.04583545,155.31,155.29,3.2196]
[1724784127392,0.04583545,155.31,155.3,3.2194]
[1724784132400,8.91,155.36,155.32,3.2188]
[1724784132902,12.1282,155.36,155.32,3.2188]
[1724784133403,12.17029782,155.36,155.32,3.25975045]
[1724784133999,12.17029782,155.36,155.33,3.2187]
[1724784136306,0.04209782,155.36,155.34,3.2185]
[1724784136609,0.04209782,155.36,155.32,0.04095045]
[1724784136905,0.04209782,155.36,155.35,3.2183]
[1724784141724,7.4171,155.41,155.39,3.2175]
[1724784141929,13.11,155.41,155.39,3.2175]
[1724784142128,8.91,155.41,155.39,3.2175]
[1724784142327,8.91,155.42,155.4,3.2173]
[1724784142725,8.91,155.42,155.35,8.91]
[1724784142726,0.04503898,155.43,155.41,3.217]
[1724784143034,0.04503898,155.43,155.39,0.04076378]
[1724784143035,8.91,155.42,155.39,0.04076378]
[1724784145028,8.91,155.4,155.39,0.04076378]
[1724784147830,8.91,155.4,155.34,5.7131]
[1724784148026,8.91,155.37,155.34,5.7131]
[1724784148225,8.91,155.37,155.34,2.4946]
[1724784148430,8.91,155.37,155.35,3.2183]
[1724784148931,8.91,155.37,155.34,2.53633021]
[1724784149227,8.91,155.37,155.34,5.75473021]
[1724784149634,8.91,155.37,155.35,3.2183]
[1724784150529,8.91,155.37,155.34,5.75473021]
[1724784153226,8.91,155.36,155.34,0.04173021]
[1724784153429,0.04400121,155.38,155.34,0.04173021]
[1724784153630,8.91,155.36,155.34,0.04173021]
[1724784154333,8.91,155.36,155.34,3.26023021]
[1724784154531,3.218,155.37,155.34,3.26023021]
[1724784154726,8.95400121,155.38,155.34,0.04173021]
[1724784154727,0.04400121,155.38,155.34,0.04173021]
[1724784155034,12.17170121,155.38,155.35,3.2182]
[1724784155534,8.95400121,155.38,155.36,3.2181]
[1724784155735,8.95400121,155.38,155.34,0.04173021]
[1724784156229,12.17190121,155.38,155.35,3.2183]
[1724784156435,8.95400121,155.38,155.35,3.2183]
[1724784156934,12.17180121,155.38,155.35,3.2183]
[1724784160039,3.26180121,155.38,155.35,3.2183]
[1724784160239,12.17180121,155.38,155.35,3.2183]
[1724784160840,12.17180121,155.38,155.34,3.26023021]
[1724784161745,8.95400121,155.38,155.35,3.2183]
[1724784162040,8.95400121,155.38,155.34,0.04173021]
[1724784162738,12.17170121,155.38,155.35,3.2182]
[1724784163442,12.17170121,155.38,155.36,3.2181]
[1724784163642,12.17170121,155.38,155.34,0.04173021]
[1724784163843,8.95400121,155.38,155.34,0.04173021]
[1724784164342,8.95400121,155.38,155.36,3.2181]
[1724784164540,3.26170121,155.38,155.36,3.2181]
[1724784164935,0.04400121,155.38,155.35,3.2182]
[1724784165446,3.2179,155.37,155.34,3.26013021]
[1724784165746,12.1279,155.37,155.34,3.26013021]
[1724784166445,3.2181,155.36,155.34,3.26013021]
[1724784167342,3.2181,155.36,155.34,0.04173021]
[1724784168045,3.2183,155.35,155.34,0.04173021]
[1724784171151,12.1283,155.35,155.34,0.04173021]
[1724784174449,3.2188,155.33,155.3,3.2193]
[1724784174744,8.91,155.32,155.3,3.2193]
[1724784176451,3.26532663,155.33,155.3,3.2193]
[1724784180347,0.04652663,155.33,155.29,0.04834955]
[1724784180747,0.04652663,155.33,155.32,3.2189]
[1724784182250,0.04652663,155.33,155.32,12.1289]
[1724784183757,0.04652663,155.33,155.32,3.2189]
[1724784188265,16.3076,155.39,155.36,3.218]
[1724784188464,7.3976,155.39,155.36,3.218]
[1724784189256,8.91,155.38,155.36,3.26326302]
[1724784190555,8.91,155.38,155.37,3.2179]
[1724784190753,4.22443938,155.39,155.36,0.04526302]
[1724784191862,4.22443938,155.39,155.37,3.2178]
[1724784192864,0.04443938,155.39,155.37,3.2178]
[1724784195369,0.04443938,155.39,155.38,3.2177]
[1724784199375,3.2163,155.45,155.42,3.2168]
[1724784199573,3.2163,155.45,155.36,3.29074407]
[1724784199574,7.396,155.47,155.39,8.91]
[1724784199775,3.216,155.47,155.39,8.91]
[1724784199978,5.3938,155.48,155.4,1.294]
[1724784200176,17.5195,155.48,155.4,1.294]
[1724784200378,0.04571149,155.46,155.4,1.294]
[1724784200579,0.04571149,155.46,155.44,3.2163]
[1724784201874,0.04571149,155.46,155.45,3.2163]
[1724784203288,0.04571149,155.46,155.44,3.2164]
[1724784203483,0.04571149,155.46,155.42,0.04106577]
[1724784205689,0.04571149,155.46,155.44,3.2163]
[1724784206383,8.95571149,155.46,155.42,0.04106577]
[1724784206787,0.04571149,155.46,155.42,0.04106577]
[1724784207286,0.04571149,155.46,155.43,3.2165]
[1724784211000,0.04571149,155.46,155.44,3.2164]
[1724784218305,0.04571149,155.46,155.45,3.2163]
[1724784228423,0.04571149,155.46,155.42,8.95106577]
[1724784228424,0.04571149,155.46,155.44,3.2164]
[1724784230026,0.04571149,155.46,155.45,3.2163]
[1724784230221,0.04571149,155.46,155.42,0.04106577]
[1724784231131,0.04571149,155.46,155.44,3.2163]
[1724784232926,0.04571149,155.46,155.45,3.2163]
[1724784235730,0.04571149,155.46,155.42,0.04106577]
[1724784236230,3.26191149,155.46,155.43,3.2165]
[1724784236831,0.04571149,155.46,155.44,3.2163]
[1724784240340,0.04571149,155.46,155.45,3.2163]
[1724784248537,4.26994851,155.5,155.49,3.2154]
[1724784248538,1.0,155.5,155.49,3.2154]
[1724784258243,3.2143,155.55,155.52,3.2147]
[1724784258449,566.0,155.72,155.52,3.2147]
[1724784258450,3.2139,155.57,155.52,0.0455912]
[1724784258841,3.2139,155.57,155.54,3.2142]
[1724784259046,3.2137,155.58,155.52,0.0455912]
[1724784259243,12.1237,155.58,155.52,0.0455912]
[1724784260351,12.1237,155.58,155.55,3.2141]
[1724784263237,7.3933,155.6,155.57,3.2138]
[1724784263442,3.2133,155.6,155.57,3.26118715]
[1724784265746,12.1233,155.6,155.57,3.26118715]
[1724784267757,3.2134,155.59,155.57,0.04738715]
[1724784268449,3.2136,155.58,155.57,0.04738715]
[1724784269153,12.1236,155.58,155.57,0.04738715]
[1724784269346,3.2143,155.55,155.5,8.91]
[1724784270355,0.0447792,155.54,155.52,3.2147]
[1724784270754,0.0447792,155.54,155.51,0.04149564]
[1724784271156,0.0447792,155.54,155.53,3.2146]
[1724784271751,0.0447792,155.54,155.52,3.2147]
[1724784272251,0.0447792,155.54,155.53,3.2146]
[1724784274558,0.0447792,155.54,155.52,3.2148]
[1724784277652,3.2591792,155.54,155.52,3.2148]
[1724784281659,3.2591792,155.54,155.51,0.04149564]
[1724784281660,0.0447792,155.54,155.51,0.04149564]
[1724784282363,8.9547792,155.54,155.51,0.04149564]
[1724784282762,3.2146,155.53,155.51,0.04149564]
[1724784283160,8.9547792,155.54,155.51,0.04149564]
[1724784283468,8.91,155.52,155.44,5.4451]
[1724784283669,8.91,155.5,155.44,1.2651]
[1724784284066,3.2156,155.49,155.46,3.2159]
[1724784284771,3.26191799,155.49,155.46,3.25687677]
[1724784286171,0.04631799,155.49,155.47,3.2158]
[1724784289268,0.04631799,155.49,155.48,3.2156]
[1724784293377,0.04631799,155.49,155.47,3.2157]
[1724784294083,0.04631799,155.49,155.48,3.2156]
[1724784294584,0.04631799,155.49,155.47,3.2158]
[1724784297883,0.04631799,155.49,155.48,3.2156]
[1724784302302,0.04631799,155.49,155.46,0.04097677]
[1724784302303,0.04631799,155.49,155.47,3.2157]
[1724784302496,0.04631799,155.49,155.46,0.04097677]
[1724784302994,3.26171799,155.49,155.46,3.25687677]
[1724784303305,8.91,155.47,155.46,0.04097677]
[1724784303495,12.1258,155.47,155.46,0.04097677]
[1724784304407,12.1258,155.47,155.36,8.0007]
[1724784304408,8.91,155.47,155.36,3.8207]
[1724784304696,8.91,155.41,155.37,3.33254543]
[1724784304897,3.2173,155.4,155.36,4.54]
[1724784305108,8.91,155.41,155.36,1.322]
[1724784305298,8.91,155.41,155.34,3.33398656]
[1724784305597,3.26428389,155.4,155.37,0.04177236]
[1724784305807,0.04678389,155.4,155.37,0.04177236]
[1724784306498,0.04678389,155.4,155.38,3.2177]
[1724784308006,0.04678389,155.4,155.39,8.91]
[1724784308501,0.04678389,155.4,155.39,12.1275]
[1724784313408,0.04678389,155.4,155.39,3.2175]
[1724784322001,0.04678389,155.4,155.37,0.04177236]
[1724784322002,8.95678389,155.4,155.37,0.04177236]
[1724784322608,12.17418389,155.4,155.37,3.25957236]
[1724784323110,0.04678389,155.4,155.37,0.04177236]
[1724784323413,8.95678389,155.4,155.37,0.04177236]
[1724784323916,3.2176,155.39,155.37,0.04177236]
[1724784324607,12.17418389,155.4,155.37,3.25967236]
[1724784324912,0.04678389,155.4,155.37,0.04177236]
[1724784325414,0.04678389,155.4,155.39,3.2175]
[1724784325914,0.04678389,155.4,155.39,12.1275]
[1724784328018,0.04678389,155.4,155.39,3.2175]
[1724784332107,0.04678389,155.4,155.37,0.04177236]
[1724784332108,8.95678389,155.4,155.37,0.04177236]
[1724784332513,12.17428389,155.4,155.37,3.25947236]
[1724784334717,8.91,155.38,155.37,0.04177236]
[1724784335610,12.1277,155.38,155.37,0.04177236]
[1724784337923,3.2183,155.36,155.31,3.33316193]
[1724784338219,3.2183,155.36,155.28,8.91]
[1724784338220,12.1283,155.36,155.28,8.91]
[1724784338421,12.1283,155.36,155.33,3.2186]
[1724784338621,3.2183,155.36,155.33,3.2186]
[1724784339030,3.26111606,155.36,155.33,3.26319306]
[1724784339526,0.04281606,155.36,155.34,3.2185]
[1724784340730,0.04281606,155.36,155.33,0.04459306]
[1724784340731,0.04281606,155.36,155.35,3.2183]
[1724784344134,3.2169,155.42,155.39,3.2174]
[1724784345322,3.26613539,155.42,155.39,3.26595197]
[1724784345523,3.2171,155.41,155.39,3.26595197]
[1724784345719,3.2171,155.41,155.39,0.04855197]
[1724784349735,0.04923539,155.42,155.39,0.04855197]
[1724784350329,0.04923539,155.42,155.41,3.2171]
[1724784352029,0.04923539,155.42,155.4,3.2173]
[1724784353140,8.91,155.41,155.3,1.0]
[1724784353331,8.91,155.32,155.3,1.0]
[1724784354133,8.91,155.32,155.3,4.2192]
[1724784355337,8.91,155.32,155.3,1.0]
[1724784356041,25.51961089,155.33,155.3,1.0]
[1724784356240,3.219,155.32,155.3,1.0]
[1724784356939,25.51961089,155.33,155.3,1.0]
[1724784357348,0.04081089,155.33,155.31,3.2191]
[1724784360533,3.25961089,155.33,155.3,4.2192]
[1724784361246,0.04081089,155.33,155.3,1.0]
[1724784361542,22.30081089,155.33,155.3,1.0]
[1724784361733,3.2192,155.31,155.3,1.0]
[1724784362746,3.219,155.32,155.3,1.0]
[1724784363543,0.04081089,155.33,155.3,1.0]
[1724784364256,0.04081089,155.33,155.32,3.2189]
[1724784364654,0.04081089,155.33,155.31,3.2191]
[1724784364956,0.04081089,155.33,155.3,1.0]
[1724784365750,3.25961089,155.33,155.3,4.2192]
[1724784366351,0.04081089,155.33,155.3,4.2192]
[1724784366754,3.25971089,155.33,155.3,1.0]
[1724784367856,3.25971089,155.33,155.3,4.2194]
[1724784368652,3.2191,155.32,155.3,1.0]
[1724784369559,3.2189,155.32,155.3,1.0]
[1724784370148,3.2192,155.31,155.3,1.0]
[1724784371746,3.2189,155.32,155.3,1.0]
[1724784371951,0.04081089,155.33,155.3,1.0]
[1724784372155,4.18,155.38,155.31,22.26]
[1724784372350,3.2174,155.4,155.36,3.218]
[1724784372551,3.2174,155.4,155.32,1.245]
[1724784372856,3.2174,155.4,155.33,22.26]
[1724784373260,0.04783428,155.38,155.36,3.218]
[1724784375254,0.04783428,155.38,155.37,3.2179]
[1724784398979,0.04783428,155.38,155.36,3.2181]
[1724784399181,0.04783428,155.38,155.35,0.04859391]
[1724784399976,0.04783428,155.38,155.36,3.218]
[1724784400177,0.04783428,155.38,155.35,0.04859391]
[1724784400178,0.04783428,155.38,155.35,8.94859391]
[1724784400584,0.04783428,155.38,155.37,3.2179]
[1724784404678,0.04783428,155.38,155.36,3.2181]
[1724784406873,0.04783428,155.38,155.35,3.26679391]
[1724784411181,0.04783428,155.38,155.36,3.2181]
[1724784412390,3.26553428,155.38,155.36,3.2181]
[1724784412589,3.26553428,155.38,155.35,3.26689391]
[1724784413488,0.04783428,155.38,155.36,3.2181]
[1724784413694,0.04783428,155.38,155.35,8.94859391]
[1724784414187,0.04783428,155.38,155.36,3.2181]
[1724784414390,0.04783428,155.38,155.35,8.94859391]
[1724784414586,0.04783428,155.38,155.37,3.2179]
[1724784416489,0.04783428,155.38,155.36,3.2181]
[1724784418798,0.04783428,155.38,155.37,3.2179]
[1724784422398,0.04783428,155.38,155.36,3.218]
[1724784422597,3.26553428,155.38,155.36,3.218]
[1724784422894,0.04783428,155.38,155.35,0.04859391]
[1724784423102,12.118,155.37,155.35,0.04859391]
[1724784423301,12.12336607,155.37,155.35,0.04859391]
[1724784423895,3.2181,155.36,155.35,0.04859391]
[1724784424998,12.15522642,155.37,155.35,0.04859391]
[1724784424999,8.9,155.37,155.35,0.04859391]
[1724784425189,0.04783428,155.38,155.35,0.04859391]
[1724784425604,3.26553428,155.38,155.35,0.04859391]
[1724784427303,3.26553428,155.38,155.35,3.26689391]
[1724784442707,3.2179,155.37,155.35,3.26689391]
[1724784443507,3.2181,155.36,155.35,0.04859391]
[1724784443800,15.28309291,155.36,155.35,0.04859391]
[1724784454418,19.44309291,155.36,155.35,0.04859391]
[1724784457513,15.28309291,155.36,155.35,0.04859391]
[1724784457710,19.44309291,155.36,155.35,0.04859391]
[1724784458622,10.54309291,155.36,155.35,0.04859391]
[1724784458915,0.04783428,155.38,155.35,0.04859391]
[1724784459117,0.04783428,155.38,155.36,3.218]
[1724784460124,3.26553428,155.38,155.36,3.218]
[1724784462710,0.04783428,155.38,155.36,3.218]
[1724784464416,3.26553428,155.38,155.36,3.218]
[1724784464914,0.04783428,155.38,155.36,3.218]
[1724784465819,0.04783428,155.38,155.37,3.2179]
[1724784466724,13.06,155.43,155.4,3.2173]
[1724784467427,13.06,155.43,155.35,1.2679]
[1724784467428,8.9,155.42,155.35,1.2679]
[1724784467624,8.94766354,155.4,155.37,0.04819854]
[1724784468421,0.04766354,155.4,155.37,0.04819854]
[1724784469327,0.04766354,155.4,155.37,3.26599854]
[1724784470430,3.26506354,155.4,155.37,3.26599854]
[1724784471421,12.16506354,155.4,155.37,0.04819854]
[1724784472121,12.16506354,155.4,155.37,3.26589854]
[1724784478824,3.26506354,155.4,155.37,3.26589854]
[1724784479022,0.04766354,155.4,155.37,0.04819854]
[1724784479630,0.04766354,155.4,155.39,3.2175]
[1724784483339,0.04766354,155.4,155.38,3.2175]
[1724784483540,0.04766354,155.4,155.37,0.04819854]
[1724784484439,0.04766354,155.4,155.39,3.2175]
[1724784484946,0.04766354,155.4,155.37,0.04819854]
[1724784485739,0.04766354,155.4,155.38,3.2177]
[1724784487038,0.04766354,155.4,155.37,0.04819854]
[1724784487842,0.04766354,155.4,155.39,3.2175]
[1724784494948,0.04766354,155.4,155.37,0.04819854]
[1724784495944,0.04766354,155.4,155.39,3.2175]
[1724784496736,0.04766354,155.4,155.39,12.1175]
[1724784497344,3.2163,155.45,155.42,3.2168]
[1724784497837,8.9,155.46,155.4,4.5292]
[1724784498238,8.9,155.44,155.4,4.5292]
[1724784498440,8.9,155.44,155.41,0.04878962]
[1724784499347,3.2168,155.43,155.41,0.04878962]
[1724784499545,8.9,155.44,155.41,0.04878962]
[1724784499947,3.2167,155.43,155.41,0.04878962]
[1724784500847,3.2169,155.42,155.41,0.04878962]
[1724784502345,12.1169,155.42,155.41,0.04878962]
[1724784505652,3.2169,155.42,155.41,0.04878962]
[1724784508151,0.04649209,155.45,155.41,0.04878962]
[1724784508752,3.26279209,155.45,155.42,3.2168]
[1724784510354,0.04649209,155.45,155.42,8.9]
[1724784510562,0.04649209,155.45,155.42,10.1748]
[1724784510752,0.04649209,155.45,155.44,12.1165]
[1724784510954,3.19035974,155.51,155.44,8.9]
[1724784511258,82.75732242,155.52,155.5,3.2151]
[1724784511259,3.14016345,155.52,155.5,3.2151]
[1724784511449,7.3745,155.54,155.5,3.2151]
[1724784511849,4.16,155.54,155.46,1.18999793]
[1724784512055,8.9,155.53,155.48,0.04221068]
[1724784512253,8.9,155.53,155.45,8.9]
[1724784512563,12.14634789,155.53,155.45,8.9]
[1724784512753,3.2148,155.52,155.45,8.9]
[1724784512950,3.2148,155.52,155.44,0.97278368]
[1724784513145,0.04239264,155.5,155.46,0.04598503]
[1724784516466,0.04239264,155.5,155.49,3.2154]
[1724784516656,0.04239264,155.5,155.46,0.04598503]
[1724784517053,0.04239264,155.5,155.46,1.29858503]
[1724784517259,0.04239264,155.5,155.49,3.2154]
[1724784522970,0.04239264,155.5,155.46,1.29858503]
[1724784524361,12.15769264,155.5,155.46,0.04598503]
[1724784524962,12.15769264,155.5,155.47,3.2157]
[1724784526777,8.94239264,155.5,155.46,0.04598503]
[1724784526977,8.9,155.48,155.46,0.04598503]
[1724784527178,3.2158,155.47,155.46,0.04598503]
[1724784530587,4.20239264,155.5,155.46,0.04598503]
[1724784530991,13.10239264,155.5,155.46,0.04598503]
[1724784531386,3.2157,155.48,155.46,0.04598503]
[1724784533382,3.2158,155.47,155.46,0.04598503]
[1724784534286,6.38486845,155.47,155.46,0.04598503]
[1724784536993,3.2158,155.47,155.46,0.04598503]
[1724784544206,12.1158,155.47,155.46,0.04598503]
[1724784548099,8.9,155.48,155.46,0.04598503]
[1724784549104,3.2158,155.47,155.46,0.04598503]
[1724784550510,12.1157,155.48,155.46,0.04598503]
[1724784553709,3.2158,155.47,155.46,0.04598503]
[1724784555409,3.2163,155.45,155.39,1.2031]
[1724784555707,12.1163,155.45,155.39,4.54292656]
[1724784556311,3.2161,155.46,155.39,4.54292656]
[1724784556511,0.04950765,155.44,155.4,0.04542871]
[1724784556906,0.04950765,155.44,155.43,3.2167]
[1724784561210,3.26600765,155.44,155.4,0.04542871]
[1724784561519,8.9,155.43,155.4,0.04542871]
[1724784561712,8.9,155.43,155.41,3.217]
[1724784562313,8.94950765,155.44,155.42,3.2169]
[1724784562808,0.04950765,155.44,155.42,3.2169]
[1724784564514,12.16600765,155.44,155.4,0.04542871]
[1724784564722,8.9,155.43,155.4,0.04542871]
[1724784565821,8.9,155.43,155.41,3.2169]
[1724784567216,8.9,155.43,155.4,0.04542871]
[1724784567423,0.04950765,155.44,155.4,0.04542871]
[1724784567424,8.9,155.41,155.4,0.04542871]
[1724784567622,8.9,155.41,155.36,8.35659181]
[1724784567623,3.2176,155.39,155.32,7.9932]
[1724784567821,8.9,155.38,155.33,12.99166557]
[1724784568119,8.9,155.37,155.34,4.63027373]
[1724784568319,12.118,155.37,155.32,3.8332]
[1724784568528,0.04159241,155.36,155.35,3.2183]
[1724784569822,0.04159241,155.36,155.34,3.2184]
[1724784571221,0.04159241,155.36,155.33,3.26235195]
[1724784572021,0.04159241,155.36,155.33,0.04365195]
[1724784572220,0.04159241,155.36,155.33,4.67493625]
[1724784572421,0.04159241,155.36,155.33,3.38737768]
[1724784572628,0.04159241,155.36,155.34,3.2184]
[1724784575826,8.94159241,155.36,155.34,3.2184]
[1724784576027,3.2183,155.35,155.33,0.04365195]
[1724784576427,8.9,155.34,155.33,0.04365195]
[1724784577427,8.9,155.34,155.29,5.07359115]
[1724784577739,8.9,155.34,155.16,6.4444]
[1724784577740,4.16,155.33,155.23,8.9]
[1724784578033,8.9,155.36,155.28,8.9]
[1724784578234,8.9,155.39,155.32,8.9]
[1724784578430,0.04796821,155.37,155.34,0.04404625]
[1724784578635,8.9,155.36,155.34,0.04404625]
[1724784578836,3.2183,155.35,155.34,0.04404625]
[1724784588048,3.2182,155.36,155.34,0.04404625]
[1724784588450,0.04796821,155.37,155.34,0.04404625]
[1724784589343,3.2183,155.35,155.34,0.04404625]
[1724784602059,12.1183,155.35,155.34,0.04404625]
[1724784603765,8.9,155.35,155.27,1.2018]
[1724784603958,8.9,155.31,155.27,1.2018]
[1724784604857,12.16434635,155.31,155.28,3.2198]
[1724784607065,3.2194,155.3,155.28,3.2198]
[1724784607264,8.94504635,155.31,155.27,3.26214018]
[1724784607566,8.94504635,155.31,155.27,0.04224018]
[1724784607567,3.2198,155.28,155.27,0.04224018]
[1724784608959,8.9,155.3,155.27,0.04224018]
[1724784609464,12.1195,155.3,155.27,0.04224018]
[1724784610058,8.9,155.3,155.27,3.26214018]
[1724784610361,8.9,155.3,155.27,0.04224018]
[1724784610758,8.9,155.28,155.14,62.71536434]
[1724784610960,8.9,155.25,155.18,5.4736]
[1724784611266,8.9,155.25,155.22,3.2209]
[1724784611858,8.94066853,155.25,155.22,3.26597794]
[1724784612071,0.04066853,155.25,155.24,3.2206]
[1724784616168,0.04066853,155.25,155.23,3.2207]
[1724784616474,0.04066853,155.25,155.22,0.04507794]
[1724784616870,0.04066853,155.25,155.23,3.2206]
[1724784617374,0.04066853,155.25,155.24,3.2206]
[1724784619572,8.9,155.31,155.27,3.2199]
[1724784619870,13.08,155.31,155.27,3.2199]
[1724784620469,8.9,155.29,155.27,3.2199]
[1724784620666,8.9,155.28,155.27,0.04337123]
[1724784621171,8.9,155.29,155.27,3.26317123]
[1724784622263,12.1196,155.29,155.27,0.04337123]
[1724784626778,4.22483473,155.31,155.27,0.04337123]
[1724784627081,0.04483473,155.31,155.27,0.04337123]
[1724784627280,3.26413473,155.31,155.28,3.2197]
[1724784627474,12.16413473,155.31,155.28,3.2197]
[1724784627877,8.94483473,155.31,155.28,3.2197]
[1724784628673,3.26403473,155.31,155.27,0.04337123]
[1724784628872,0.04483473,155.31,155.27,0.04337123]
[1724784629077,0.04483473,155.31,155.29,3.2194]
[1724784629486,0.04483473,155.31,155.27,0.04337123]
[1724784629679,0.04483473,155.31,155.3,3.2194]
[1724784632578,0.04483473,155.31,155.29,3.2195]
[1724784632779,0.04483473,155.31,155.28,1.2541]
[1724784632780,8.9,155.3,155.27,0.04337123]
[1724784633479,8.9,155.3,155.28,3.2197]
[1724784634087,8.9,155.3,155.27,3.26327123]
[1724784634387,8.9,155.3,155.27,0.04337123]
[1724784634586,12.1195,155.3,155.27,3.26327123]
[1724784636189,8.9,155.3,155.28,3.2198]
[1724784636785,8.9,155.3,155.29,3.2196]
[1724784636981,8.9,155.3,155.27,0.04337123]
[1724784637384,8.9,155.3,155.28,3.2197]
[1724784641393,12.16403473,155.31,155.29,3.2196]
[1724784645607,12.16403473,155.31,155.28,3.2198]
[1724784645792,8.9,155.3,155.28,3.2198]
[1724784647087,8.9,155.3,155.27,0.04337123]
[1724784647289,12.1194,155.3,155.27,3.26327123]
[1724784649896,12.1194,155.3,155.28,3.2198]
[1724784650198,8.9,155.3,155.28,3.2198]
[1724784651100,3.26403473,155.31,155.28,3.2198]
[1724784651499,12.16403473,155.31,155.28,3.2198]
[1724784651694,0.04483473,155.31,155.27,0.04337123]
[1724784652694,0.04483473,155.31,155.3,3.2194]
[1724784653588,0.04483473,155.31,155.29,3.2195]
[1724784656805,0.04483473,155.31,155.3,3.2194]
[1724784657202,4.16,155.38,155.3,1.28790962]
[1724784657405,109.32159123,155.43,155.33,8.9]
[1724784657706,8.9,155.4,155.33,8.9]
[1724784657905,8.9,155.4,155.38,3.2176]
[1724784658204,3.2172,155.41,155.38,3.2176]
[1724784658407,3.26430963,155.41,155.38,3.2176]
[1724784660011,0.04710963,155.41,155.38,3.2177]
[1724784660814,3.26420963,155.41,155.37,3.2605188]
[1724784662824,3.26420963,155.41,155.38,3.2177]
[1724784663213,0.04710963,155.41,155.39,3.2174]
[1724784664423,3.26420963,155.41,155.38,3.2176]
[1724784665213,8.9,155.4,155.38,3.2176]
[1724784665420,8.9,155.4,155.37,0.0428188]
[1724784666318,12.1173,155.4,155.38,3.2177]
[1724784667025,8.9,155.4,155.38,3.2177]
[1724784667723,0.04710963,155.41,155.37,0.0428188]
[1724784668429,0.04710963,155.41,155.4,3.2173]
[1724784678433,3.2161,155.46,155.43,3.2166]
[1724784679027,3.2163,155.45,155.42,3.2167]
[1724784679434,3.26204081,155.45,155.42,3.26404962]
[1724784681943,3.26204081,155.45,155.42,0.04734962]
[1724784682143,8.9,155.44,155.42,0.04734962]
[1724784682544,0.04574081,155.45,155.42,3.26414962]
[1724784682545,12.16204081,155.45,155.42,3.26414962]
[1724784692042,12.16204081,155.45,155.43,3.2166]
[1724784693244,12.16204081,155.45,155.42,3.26424962]
[1724784694246,3.26204081,155.45,155.42,3.26424962]
[1724784694751,3.2167,155.43,155.42,0.04734962]
[1724784697739,0.04574081,155.45,155.42,0.04734962]
[1724784698451,0.04574081,155.45,155.43,3.2166]
[1724784700358,3.26204081,155.45,155.43,3.2166]
[1724784703750,3.2165,155.44,155.42,3.26424962]
[1724784705559,0.04574081,155.45,155.42,0.04734962]
[1724784705954,3.26204081,155.45,155.42,3.26424962]
[1724784706660,0.04574081,155.45,155.42,8.94734962]
[1724784707453,0.04574081,155.45,155.44,12.1165]
[1724784709563,1.0,155.5,155.48,3.2156]
[1724784709954,1.0,155.5,155.47,8.9]
[1724784710161,1.0,155.5,155.48,3.2156]
[1724784710560,1.0,155.5,155.49,3.2154]
[1724784711965,4.14,155.54,155.48,8.9]
[1724784712265,4.14,155.54,155.51,8.9]
[1724784712567,8.9,155.52,155.33,54.85792645]
[1724784712764,4.14,155.55,155.44,8.9]
[1724784712963,4.14,155.55,155.4,4.61713227]
[1724784712964,0.04579646,155.51,155.48,0.04539565]
[1724784713965,0.04579646,155.51,155.48,3.26089565]
[1724784714168,8.9,155.5,155.48,0.04539565]
[1724784714364,12.1154,155.49,155.48,0.04539565]
[1724784714664,12.1154,155.49,155.34,45.2557]
[1724784714665,8.9,155.49,155.38,8.9]
[1724784714857,8.9,155.46,155.39,8.9]
[1724784715258,12.1161,155.46,155.42,3.2167]
[1724784715458,12.1161,155.46,155.42,3.25808668]
[1724784715665,12.16547179,155.46,155.42,3.25808668]
[1724784716356,3.2163,155.45,155.42,0.04138668]
[1724784717564,12.16547179,155.46,155.42,3.25828668]
[1724784718967,3.2163,155.45,155.42,3.25828668]
[1724784720458,3.26557179,155.46,155.42,3.25828668]
[1724784720667,3.26557179,155.46,155.43,3.2167]
[1724784720862,3.26557179,155.46,155.42,0.04138668]
[1724784721164,12.16557179,155.46,155.42,0.04138668]
[1724784721364,3.2163,155.45,155.42,0.04138668]